bitfinex/quotes_BTCUSD_20220731
["timestamp","ask_amount","ask_price","bid_price","bid_amount"]
[1659261198978,0.40725733,23723.0,23722.0,0.59947084]
[1659261199196,0.40725733,23723.0,23722.0,0.59547384]
[1659261199412,0.40725733,23723.0,23722.0,0.89947084]
[1659261199693,0.40725733,23723.0,23722.0,0.51647384]
[1659261200114,0.40725733,23723.0,23722.0,0.514719]
[1659261200344,0.40725733,23723.0,23722.0,0.235719]
[1659261201465,0.40725733,23723.0,23722.0,0.539716]
[1659261201694,0.40725733,23723.0,23722.0,0.818716]
[1659261201915,0.40725733,23723.0,23722.0,0.514719]
[1659261202557,0.40725733,23723.0,23722.0,0.818716]
[1659261203018,0.40725733,23723.0,23722.0,0.514719]
[1659261203241,0.40725733,23723.0,23722.0,0.82569167]
[1659261203466,0.40725733,23723.0,23722.0,1.12968867]
[1659261203671,0.40725733,23723.0,23722.0,0.82569167]
[1659261206226,0.40725733,23723.0,23722.0,0.87569167]
[1659261206449,0.40725733,23723.0,23722.0,0.82569167]
[1659261207867,0.40725733,23723.0,23722.0,1.12968867]
[1659261208088,0.40725733,23723.0,23722.0,1.17968867]
[1659261208311,0.40725733,23723.0,23722.0,0.82569167]
[1659261208752,0.40725733,23723.0,23722.0,0.90469167]
[1659261208980,0.40725733,23723.0,23722.0,1.20868867]
[1659261209227,0.40725733,23723.0,23722.0,0.69403067]
[1659261209449,0.40725733,23723.0,23722.0,0.77303067]
[1659261209668,0.40725733,23723.0,23722.0,1.07702767]
[1659261209940,0.40725733,23723.0,23722.0,0.77303067]
[1659261210163,0.40725733,23723.0,23722.0,0.31503067]
[1659261210855,0.40725733,23723.0,23722.0,0.39403067]
[1659261211349,0.40725733,23723.0,23722.0,0.69403067]
[1659261211572,0.71125433,23723.0,23722.0,0.39403067]
[1659261212730,0.71125433,23723.0,23722.0,0.31503067]
[1659261212955,0.71116108,23723.0,23722.0,0.39303067]
[1659261214339,0.71116108,23723.0,23722.0,0.31503067]
[1659261215028,0.73616108,23723.0,23722.0,0.39103067]
[1659261215278,0.73116108,23723.0,23722.0,0.39103067]
[1659261216926,0.78516108,23723.0,23722.0,0.31503067]
[1659261218260,0.70616108,23723.0,23722.0,0.31503067]
[1659261219015,0.76316108,23723.0,23722.0,0.31503067]
[1659261220433,0.70616108,23723.0,23722.0,0.31503067]
[1659261220889,0.70616108,23723.0,23722.0,0.004058]
[1659261220890,0.76316108,23723.0,23722.0,0.004058]
[1659261222271,0.70616108,23723.0,23722.0,0.004058]
[1659261222956,0.76316108,23723.0,23722.0,0.004058]
[1659261224305,0.70616108,23723.0,23722.0,0.004058]
[1659261224998,0.76316108,23723.0,23722.0,0.004058]
[1659261226334,0.70616108,23723.0,23722.0,0.004058]
[1659261227061,0.76316108,23723.0,23722.0,0.004058]
[1659261228156,0.70616108,23723.0,23722.0,0.004058]
[1659261229044,0.76316108,23723.0,23722.0,0.004058]
[1659261230114,0.76316108,23723.0,23722.0,0.00397562]
[1659261230343,0.70616108,23723.0,23722.0,0.00397562]
[1659261231026,0.76316108,23723.0,23722.0,0.00397562]
[1659261232383,0.70616108,23723.0,23722.0,0.00397562]
[1659261232862,0.70616108,23723.0,23722.0,0.08097562]
[1659261233842,0.40216408,23723.0,23722.0,0.08097562]
[1659261234300,0.70616108,23723.0,23722.0,0.00397562]
[1659261235014,0.73816108,23723.0,23722.0,0.08197562]
[1659261235472,0.73816108,23723.0,23722.0,0.08191551]
[1659261235640,0.77974768,23723.0,23722.0,0.08191551]
[1659261236266,0.74774768,23723.0,23722.0,0.00391551]
[1659261237057,0.77974768,23723.0,23722.0,0.08191551]
[1659261238151,0.74774768,23723.0,23722.0,0.00391551]
[1659261239046,0.77974768,23723.0,23722.0,0.08191551]
[1659261239266,0.73816108,23723.0,23722.0,0.08191551]
[1659261240263,0.71307452,23723.0,23722.0,0.00391551]
[1659261240916,0.75407452,23723.0,23722.0,0.00391551]
[1659261242138,0.71307452,23723.0,23722.0,0.00391551]
[1659261242545,0.70616108,23723.0,23722.0,0.00404422]
[1659261242976,0.74716108,23723.0,23722.0,0.00391551]
[1659261243287,0.44316408,23723.0,23722.0,0.00391551]
[1659261243514,0.75407452,23723.0,23722.0,0.00391551]
[1659261243755,0.44316408,23723.0,23722.0,0.00391551]
[1659261243976,0.74716108,23723.0,23722.0,0.00391551]
[1659261244201,0.40216408,23723.0,23722.0,0.00391551]
[1659261244430,0.71307452,23723.0,23722.0,0.00391551]
[1659261244922,0.71307452,23723.0,23722.0,0.08191551]
[1659261245148,0.70616108,23723.0,23722.0,0.08204422]
[1659261245365,0.70616108,23723.0,23722.0,0.08191551]
[1659261246036,0.70616108,23723.0,23722.0,0.00391551]
[1659261246755,0.79207452,23723.0,23722.0,0.00391551]
[1659261248205,0.71307452,23723.0,23722.0,0.00391551]
[1659261248430,0.71279375,23723.0,23722.0,0.00391551]
[1659261249343,0.70588031,23723.0,23722.0,0.00391551]
[1659261249819,0.74088031,23723.0,23722.0,0.08191551]
[1659261250041,0.43688331,23723.0,23722.0,0.08191551]
[1659261250263,0.74088031,23723.0,23722.0,0.08191551]
[1659261250501,0.43688331,23723.0,23722.0,0.08191551]
[1659261250727,0.74088031,23723.0,23722.0,0.08191551]
[1659261250956,0.77588031,23723.0,23722.0,0.15991551]
[1659261251416,0.70588031,23723.0,23722.0,0.00391551]
[1659261253085,0.40188331,23723.0,23722.0,0.00391551]
[1659261253313,0.70588031,23723.0,23722.0,0.00391551]
[1659261253774,0.40188331,23723.0,23722.0,0.00391551]
[1659261253993,0.43655647,23723.0,23722.0,0.00391551]
[1659261254217,0.74746691,23723.0,23722.0,0.08191551]
[1659261254435,0.44346991,23723.0,23722.0,0.08191551]
[1659261254661,0.74746691,23723.0,23722.0,0.08191551]
[1659261254899,0.74746691,23723.0,23722.0,0.15991551]
[1659261255154,0.44346991,23723.0,23722.0,0.15991551]
[1659261255637,0.74746691,23723.0,23722.0,0.00391551]
[1659261256743,0.74746691,23723.0,23722.0,0.08191551]
[1659261257202,0.44346991,23723.0,23722.0,0.08191551]
[1659261257443,0.74746691,23723.0,23722.0,0.08191551]
[1659261258087,0.44346991,23723.0,23722.0,0.00391551]
[1659261258328,0.74746691,23723.0,23722.0,0.00391551]
[1659261258788,0.44346991,23723.0,23722.0,0.08191551]
[1659261259030,0.74746691,23723.0,23722.0,0.08191551]
[1659261259236,0.44346991,23723.0,23722.0,0.08191551]
[1659261259493,0.74746691,23723.0,23722.0,0.08191551]
[1659261259945,0.44346991,23723.0,23722.0,0.08191551]
[1659261260204,0.74746691,23723.0,23722.0,0.00391551]
[1659261260415,0.44346991,23723.0,23722.0,0.00391551]
[1659261260622,0.74746691,23723.0,23722.0,0.00391551]
[1659261260822,0.43846991,23723.0,23722.0,0.00391551]
[1659261261255,0.74246691,23723.0,23722.0,0.00391551]
[1659261261705,0.43846991,23723.0,23722.0,0.00391551]
[1659261261905,0.74246691,23723.0,23722.0,0.00391551]
[1659261262832,0.77746691,23723.0,23722.0,0.08191551]
[1659261263748,0.81246691,23723.0,23722.0,0.15991551]
[1659261264660,0.70088031,23723.0,23722.0,0.00391551]
[1659261265096,0.70070906,23723.0,23722.0,0.00391551]
[1659261266860,0.70070906,23723.0,23722.0,0.08191551]
[1659261267082,0.73270906,23723.0,23722.0,0.08191551]
[1659261267503,0.73046287,23723.0,23722.0,0.08191551]
[1659261267993,0.72546287,23723.0,23722.0,0.08191551]
[1659261268199,0.73504947,23723.0,23722.0,0.00391551]
[1659261269301,0.65778547,23723.0,23722.0,0.00391551]
[1659261272252,0.64819887,23723.0,23722.0,0.08191551]
[1659261272596,0.72546287,23723.0,23722.0,0.08191551]
[1659261272802,0.75746287,23723.0,23722.0,0.15991551]
[1659261273741,0.69346287,23723.0,23722.0,0.00391551]
[1659261274387,0.61619887,23723.0,23722.0,0.00391551]
[1659261275130,0.69346287,23723.0,23722.0,0.00391551]
[1659261275802,0.73504947,23723.0,23722.0,0.00391551]
[1659261276366,0.73504947,23723.0,23722.0,0.08191551]
[1659261276367,0.46605247,23723.0,23722.0,0.08191551]
[1659261276576,0.77004947,23723.0,23722.0,0.08191551]
[1659261276973,0.69278547,23723.0,23722.0,0.08191551]
[1659261277141,0.77004947,23723.0,23722.0,0.08191551]
[1659261277364,0.46605247,23723.0,23722.0,0.08191551]
[1659261277571,0.77004947,23723.0,23722.0,0.08191551]
[1659261277810,0.43105247,23723.0,23722.0,0.00391551]
[1659261278291,0.77004947,23723.0,23722.0,0.08191551]
[1659261279672,0.73504947,23723.0,23722.0,0.00391551]
[1659261279908,0.43105247,23723.0,23722.0,0.00391551]
[1659261280137,0.73504947,23723.0,23722.0,0.00391551]
[1659261280367,0.77004947,23723.0,23722.0,0.08191551]
[1659261281246,0.46605247,23723.0,23722.0,0.08191551]
[1659261281689,0.73504947,23723.0,23722.0,0.00391551]
[1659261282158,0.69346287,23723.0,23722.0,0.00391551]
[1659261282415,0.72846287,23723.0,23722.0,0.08191551]
[1659261282872,0.42446587,23723.0,23722.0,0.08191551]
[1659261283086,0.72846287,23723.0,23722.0,0.08191551]
[1659261283575,0.69346287,23723.0,23722.0,0.00391551]
[1659261284010,0.38946587,23723.0,23722.0,0.00391551]
[1659261284236,0.69346287,23723.0,23722.0,0.00391551]
[1659261284457,0.38946587,23723.0,23722.0,0.00391551]
[1659261284920,0.69346287,23723.0,23722.0,0.00391551]
[1659261285145,0.69346287,23723.0,23722.0,0.08191551]
[1659261285371,0.42446587,23723.0,23722.0,0.08191551]
[1659261285668,0.77004947,23723.0,23722.0,0.08191551]
[1659261286588,0.69278547,23723.0,23722.0,0.08191551]
[1659261286826,0.61619887,23723.0,23722.0,0.00391551]
[1659261287045,0.65778547,23723.0,23722.0,0.00391551]
[1659261288211,0.73678547,23723.0,23722.0,0.00391551]
[1659261288894,0.77178547,23723.0,23722.0,0.08191551]
[1659261289572,0.65278547,23723.0,23722.0,0.00391551]
[1659261290485,0.73178547,23723.0,23722.0,0.00391551]
[1659261291802,0.65278547,23723.0,23722.0,0.00391551]
[1659261292512,0.73178547,23723.0,23722.0,0.00391551]
[1659261293681,0.65278547,23723.0,23722.0,0.00391551]
[1659261294358,0.68778547,23723.0,23722.0,0.08191551]
[1659261294575,0.64619887,23723.0,23722.0,0.08191551]
[1659261295512,0.41946587,23723.0,23722.0,0.08191551]
[1659261295744,0.68846287,23723.0,23722.0,0.00391551]
[1659261296386,0.72946287,23723.0,23722.0,0.00391551]
[1659261297721,0.68846287,23723.0,23722.0,0.00391551]
[1659261298342,0.76504947,23723.0,23722.0,0.08191551]
[1659261299712,0.65278547,23723.0,23722.0,0.00391551]
[1659261300351,0.65278547,23723.0,23722.0,0.08191551]
[1659261300543,0.68778547,23723.0,23722.0,0.08191551]
[1659261300909,0.76504947,23723.0,23722.0,0.08191551]
[1659261301712,0.73004947,23723.0,23722.0,0.00391551]
[1659261302352,0.76504947,23723.0,23722.0,0.08191551]
[1659261303811,0.73004947,23723.0,23722.0,0.00391551]
[1659261304397,0.76504947,23723.0,23722.0,0.08191551]
[1659261305580,0.73004947,23723.0,23722.0,0.00391551]
[1659261308347,0.68846287,23723.0,23722.0,0.00391551]
[1659261308782,0.41946587,23723.0,23722.0,0.08191551]
[1659261309107,0.41946587,23723.0,23722.0,0.15991551]
[1659261309313,0.75846287,23723.0,23722.0,0.15991551]
[1659261309952,0.71766957,23723.0,23722.0,0.15991551]
[1659261310160,0.71766957,23723.0,23722.0,0.15723943]
[1659261310452,0.64766957,23723.0,23722.0,0.00123943]
[1659261311884,0.68925617,23723.0,23722.0,0.00123943]
[1659261313864,0.72425617,23723.0,23722.0,0.07923943]
[1659261314153,0.37867257,23723.0,23722.0,0.08099427]
[1659261314371,0.68266957,23723.0,23722.0,0.07923943]
[1659261314595,0.37867257,23723.0,23722.0,0.07923943]
[1659261315279,0.72425617,23723.0,23722.0,0.07923943]
[1659261315976,0.68266957,23723.0,23722.0,0.08099427]
[1659261316193,0.64766957,23723.0,23722.0,0.00123943]
[1659261316685,0.34367257,23723.0,23722.0,0.00123943]
[1659261316918,0.34367257,23723.0,23722.0,0.07923943]
[1659261317572,0.64766957,23723.0,23722.0,0.07923943]
[1659261318091,0.34367257,23723.0,23722.0,0.07923943]
[1659261318316,0.34367257,23723.0,23722.0,0.00123943]
[1659261318317,0.64766957,23723.0,23722.0,0.00123943]
[1659261318762,0.34367257,23723.0,23722.0,0.00123943]
[1659261318979,0.64766957,23723.0,23722.0,0.07923943]
[1659261320380,0.64766957,23723.0,23722.0,0.00123943]
[1659261320603,0.34367257,23723.0,23722.0,0.00123943]
[1659261321041,0.64766957,23723.0,23722.0,0.00123943]
[1659261321910,0.34367257,23723.0,23722.0,0.00123943]
[1659261322135,0.64766957,23723.0,23722.0,0.00123943]
[1659261328736,0.68266957,23723.0,23722.0,0.07923943]
[1659261330265,0.68266957,23723.0,23722.0,0.08197226]
[1659261330489,0.64766957,23723.0,23722.0,0.00397226]
[1659261330695,0.64766957,23723.0,23722.0,0.08197226]
[1659261332192,0.64766957,23723.0,23722.0,0.00397226]
[1659261333912,0.64766957,23723.0,23722.0,0.08197226]
[1659261334825,0.64755581,23723.0,23722.0,0.08197226]
[1659261335096,0.64755581,23723.0,23722.0,0.00598676]
[1659261335327,0.34355881,23723.0,23722.0,0.08398676]
[1659261336475,0.64755581,23723.0,23722.0,0.08398676]
[1659261336698,0.34355881,23723.0,23722.0,0.00598676]
[1659261336917,0.64755581,23723.0,23722.0,0.08398676]
[1659261337204,0.34355881,23723.0,23722.0,0.08398676]
[1659261337877,0.34355881,23723.0,23722.0,0.16198676]
[1659261338565,0.34355881,23723.0,23722.0,0.00598676]
[1659261339971,0.34355881,23723.0,23722.0,0.08398676]
[1659261341317,0.64755581,23723.0,23722.0,0.08398676]
[1659261341541,0.34355881,23723.0,23722.0,0.08398676]
[1659261341763,0.34355881,23723.0,23722.0,0.00598676]
[1659261342002,0.38455881,23723.0,23722.0,0.00598676]
[1659261342716,0.42614541,23723.0,23722.0,0.00598676]
[1659261342934,0.38455881,23723.0,23722.0,0.00598676]
[1659261343156,0.34355881,23723.0,23722.0,0.00598676]
[1659261343596,0.64755581,23723.0,23722.0,0.00598676]
[1659261343831,0.34355881,23723.0,23722.0,0.00598676]
[1659261344275,0.37555881,23723.0,23722.0,0.08398676]
[1659261345669,0.34355881,23723.0,23722.0,0.00598676]
[1659261345892,0.34355881,23723.0,23722.0,0.08398676]
[1659261346397,0.64755581,23723.0,23722.0,0.08398676]
[1659261346620,0.34355881,23723.0,23722.0,0.08398676]
[1659261347760,0.34355881,23723.0,23722.0,0.00598676]
[1659261347972,0.34355881,23723.0,23722.0,0.08398676]
[1659261348641,0.64755581,23723.0,23722.0,0.08398676]
[1659261349115,0.34355881,23723.0,23722.0,0.08398676]
[1659261349341,0.34355881,23723.0,23722.0,0.00598676]
[1659261350010,0.34355881,23723.0,23722.0,0.08398676]
[1659261351229,0.34355881,23723.0,23722.0,0.00598676]
[1659261351896,0.34355881,23723.0,23722.0,0.08398676]
[1659261354387,0.34355881,23723.0,23722.0,0.00598676]
[1659261354821,0.34355881,23723.0,23722.0,0.08398676]
[1659261356182,0.34355881,23723.0,23722.0,0.00598676]
[1659261357743,0.34344585,23723.0,23722.0,0.00598676]
[1659261358888,0.34344585,23723.0,23722.0,0.08398676]
[1659261359644,0.64744285,23723.0,23722.0,0.08398676]
[1659261359879,0.34344585,23723.0,23722.0,0.08398676]
[1659261360120,0.34344585,23723.0,23722.0,0.00598676]
[1659261360387,0.64744285,23723.0,23722.0,0.00598676]
[1659261360851,0.34344585,23723.0,23722.0,0.00598676]
[1659261361275,0.64744285,23723.0,23722.0,0.00618332]
[1659261361476,0.34344585,23723.0,23722.0,0.00598676]
[1659261361709,0.34344585,23723.0,23722.0,0.08398676]
[1659261363121,0.34344585,23723.0,23722.0,0.00598676]
[1659261363352,0.34344585,23723.0,23722.0,0.08398676]
[1659261363610,0.68902945,23723.0,23722.0,0.08398676]
[1659261363849,0.34344585,23723.0,23722.0,0.08398676]
[1659261364499,0.34344585,23723.0,23722.0,0.00598676]
[1659261365388,0.64744285,23723.0,23722.0,0.08398676]
[1659261366339,0.64744285,23723.0,23722.0,0.16198676]
[1659261366568,0.64744285,23723.0,23722.0,0.08398676]
[1659261366775,0.68902945,23723.0,23722.0,0.08398676]
[1659261367186,0.61176545,23723.0,23722.0,0.08398676]
[1659261367643,0.61176545,23723.0,23722.0,0.00598676]
[1659261367846,0.37844585,23723.0,23722.0,0.08398676]
[1659261368366,0.68244285,23723.0,23722.0,0.08398676]
[1659261368577,0.37844585,23723.0,23722.0,0.08398676]
[1659261368802,0.68244285,23723.0,23722.0,0.08398676]
[1659261369012,0.37844585,23723.0,23722.0,0.08398676]
[1659261369250,0.34344585,23723.0,23722.0,0.00598676]
[1659261369651,0.64744285,23723.0,23722.0,0.00598676]
[1659261370369,0.34344585,23723.0,23722.0,0.00598676]
[1659261370601,0.64744285,23723.0,23722.0,0.00598676]
[1659261370958,0.64744285,23723.0,23722.0,0.08398676]
[1659261371592,0.68902945,23723.0,23722.0,0.08398676]
[1659261372258,0.38503245,23723.0,23722.0,0.08398676]
[1659261372469,0.64744285,23723.0,23722.0,0.08398676]
[1659261372665,0.68902945,23723.0,23722.0,0.08398676]
[1659261373007,0.38503245,23723.0,23722.0,0.08398676]
[1659261373235,0.68902945,23723.0,23722.0,0.00598676]
[1659261373454,0.38503245,23723.0,23722.0,0.00598676]
[1659261373662,0.37811901,23723.0,23722.0,0.00598676]
[1659261373872,0.37811901,23723.0,23722.0,0.08398676]
[1659261374075,0.64744285,23723.0,23722.0,0.08398676]
[1659261374283,0.34344585,23723.0,23722.0,0.08398676]
[1659261374760,0.64744285,23723.0,23722.0,0.08398676]
[1659261374961,0.38503245,23723.0,23722.0,0.08398676]
[1659261375164,0.64744285,23723.0,23722.0,0.00598676]
[1659261375367,0.34344585,23723.0,23722.0,0.00598676]
[1659261375857,0.65435629,23723.0,23722.0,0.08398676]
[1659261377159,0.65435629,23723.0,23722.0,0.00598676]
[1659261377575,0.57709229,23723.0,23722.0,0.00598676]
[1659261378023,0.57709229,23723.0,23722.0,0.08398676]
[1659261378475,0.57701673,23723.0,23722.0,0.08398676]
[1659261378908,0.61168989,23723.0,23722.0,0.08398676]
[1659261379133,0.38495689,23723.0,23722.0,0.08398676]
[1659261379330,0.68895389,23723.0,23722.0,0.08398676]
[1659261379728,0.68895389,23723.0,23722.0,0.00598676]
[1659261379957,0.68895389,23723.0,23722.0,0.08398676]
[1659261380735,0.38495689,23723.0,23722.0,0.08398676]
[1659261381191,0.68895389,23723.0,23722.0,0.00598676]
[1659261381946,0.68895389,23723.0,23722.0,0.08398676]
[1659261382778,0.39053375,23723.0,23722.0,0.078]
[1659261382915,0.69453075,23723.0,23722.0,0.078]
[1659261383118,0.69453075,23723.0,23718.0,0.35]
[1659261383402,0.40725733,23722.0,23718.0,0.66103652]
[1659261383830,0.40725733,23722.0,23718.0,0.73903652]
[1659261384206,0.40990861,23722.0,23718.0,0.73903652]
[1659261384631,0.40725733,23721.0,23718.0,0.73903652]
[1659261385058,0.40725733,23721.0,23718.0,0.68903652]
[1659261385863,0.40725733,23721.0,23718.0,0.76803652]
[1659261386032,0.40725733,23721.0,23718.0,0.69003652]
[1659261386203,0.40725733,23721.0,23719.0,0.303997]
[1659261386405,0.40725733,23721.0,23718.0,0.69003652]
[1659261386611,0.40725733,23721.0,23719.0,0.303997]
[1659261386838,0.40725733,23721.0,23718.0,0.69003652]
[1659261387306,0.40725733,23721.0,23718.0,0.61103652]
[1659261388070,0.41562262,23721.0,23718.0,0.61103652]
[1659261388272,0.40725733,23720.0,23719.0,0.04734872]
[1659261388712,0.40725733,23720.0,23718.0,0.69003652]
[1659261389311,0.40725733,23720.0,23719.0,0.04734872]
[1659261389738,0.40725733,23720.0,23718.0,0.61103652]
[1659261390091,0.40725733,23720.0,23719.0,0.079]
[1659261390532,0.40725733,23720.0,23719.0,0.382997]
[1659261390757,0.40725733,23720.0,23719.0,0.379]
[1659261391305,0.40725733,23720.0,23719.0,0.3]
[1659261391891,0.48025733,23720.0,23719.0,0.309]
[1659261392579,0.48304576,23720.0,23719.0,0.309]
[1659261393124,0.41004576,23720.0,23719.0,0.3]
[1659261393808,0.41004576,23720.0,23719.0,0.379]
[1659261396060,0.41004576,23720.0,23719.0,0.458]
[1659261396870,0.45424258,23720.0,23719.0,0.458]
[1659261397077,0.41265598,23720.0,23719.0,0.3]
[1659261397918,0.41265598,23720.0,23719.0,0.379]
[1659261398361,0.41265598,23720.0,23719.0,0.079]
[1659261398571,0.41265598,23720.0,23719.0,0.379]
[1659261399243,0.41265598,23720.0,23719.0,0.3]
[1659261399481,0.45424258,23720.0,23718.0,0.31103652]
[1659261399700,0.45424258,23720.0,23719.0,0.3]
[1659261399974,0.41265598,23720.0,23718.0,0.31103652]
[1659261400207,0.48565598,23720.0,23719.0,0.309]
[1659261400448,0.52724258,23720.0,23719.0,0.612997]
[1659261400674,0.48565598,23720.0,23719.0,0.309]
[1659261401363,0.41265598,23720.0,23719.0,0.3]
[1659261402040,0.41265598,23720.0,23719.0,0.379]
[1659261403193,0.41265598,23720.0,23719.0,0.3]
[1659261403912,0.41265598,23720.0,23719.0,0.379]
[1659261404082,0.45424258,23720.0,23719.0,0.379]
[1659261404222,0.44732914,23720.0,23719.0,0.379]
[1659261404441,0.41265598,23720.0,23719.0,0.379]
[1659261404643,0.41254682,23720.0,23719.0,0.379]
[1659261404821,0.42006044,23720.0,23719.0,0.379]
[1659261405034,0.46164704,23720.0,23719.0,0.379]
[1659261405257,0.46164704,23720.0,23719.0,0.3]
[1659261405459,0.42006044,23720.0,23719.0,0.3]
[1659261405886,0.42006044,23720.0,23719.0,0.379]
[1659261407247,0.42006044,23720.0,23719.0,0.3]
[1659261407931,0.42006044,23720.0,23719.0,0.375]
[1659261409228,0.42006044,23720.0,23719.0,0.3]
[1659261409767,0.42006044,23720.0,23719.0,0.379]
[1659261411246,0.42006044,23720.0,23719.0,0.3]
[1659261411956,0.42006044,23720.0,23719.0,0.379]
[1659261413300,0.42006044,23720.0,23719.0,0.3]
[1659261414037,0.49506044,23720.0,23719.0,0.313]
[1659261415373,0.42006044,23720.0,23719.0,0.3]
[1659261418273,0.42006044,23720.0,23718.0,0.31103652]
[1659261418511,0.40725733,23719.0,23718.0,0.31103652]
[1659261418743,0.40725733,23719.0,23718.0,0.61103652]
[1659261419419,0.40725733,23719.0,23718.0,0.61123311]
[1659261420079,0.40725733,23719.0,23718.0,0.61103652]
[1659261421094,0.40725733,23719.0,23718.0,0.69003652]
[1659261421859,0.40725733,23719.0,23718.0,0.99403352]
[1659261422075,0.40725733,23719.0,23718.0,0.61103652]
[1659261423474,0.40725733,23719.0,23718.0,0.69003652]
[1659261423940,0.40725733,23719.0,23718.0,0.76903652]
[1659261424806,0.40725733,23719.0,23718.0,0.61103652]
[1659261425771,0.44884393,23719.0,23718.0,0.61103652]
[1659261425971,0.40725733,23719.0,23718.0,0.61103652]
[1659261427621,0.40725733,23719.0,23718.0,0.61095203]
[1659261427836,0.40725733,23719.0,23718.0,0.68995203]
[1659261428416,0.01536214,23720.0,23718.0,0.68995203]
[1659261428658,0.01536214,23720.0,23719.0,0.603997]
[1659261428892,0.01536214,23720.0,23719.0,0.903997]
[1659261429120,0.01536214,23720.0,23719.0,0.94829048]
[1659261429396,0.01536214,23720.0,23719.0,0.96230876]
[1659261429640,0.00940214,23720.0,23719.0,0.94829048]
[1659261429873,0.63288775,23725.0,23722.0,0.1]
[1659261430115,0.40725733,23724.0,23723.0,0.65134572]
[1659261430346,0.63288775,23725.0,23724.0,0.35]
[1659261430586,0.63288775,23725.0,23724.0,1.76125433]
[1659261431303,0.63288775,23725.0,23724.0,1.46125433]
[1659261431547,0.63288775,23725.0,23724.0,0.603997]
[1659261432021,0.63288775,23725.0,23724.0,0.635997]
[1659261432473,0.63288775,23725.0,23724.0,0.332]
[1659261432699,0.63288775,23725.0,23724.0,0.032]
[1659261432914,0.63833637,23725.0,23724.0,0.332]
[1659261433173,0.63833637,23725.0,23724.0,0.635997]
[1659261433396,1.0455937,23725.0,23724.0,0.603997]
[1659261434112,1.0455937,23725.0,23724.0,0.637997]
[1659261434813,1.0455937,23725.0,23724.0,0.334]
[1659261435038,1.0455937,23725.0,23724.0,0.034]
[1659261435266,1.0455937,23725.0,23720.0,0.5876]
[1659261435267,1.3495907,23725.0,23720.0,0.5876]
[1659261435501,0.50990861,23724.0,23720.0,0.5876]
[1659261435794,0.40725733,23723.0,23720.0,0.5876]
[1659261436032,0.40725733,23723.0,23721.0,0.303997]
[1659261436266,0.40990861,23723.0,23721.0,0.303997]
[1659261436502,0.40990861,23723.0,23720.0,0.043]
[1659261436503,0.40990861,23723.0,23720.0,0.346997]
[1659261436742,0.40990861,23723.0,23721.0,0.3]
[1659261436954,0.40990861,23723.0,23722.0,0.303997]
[1659261437187,0.40990861,23723.0,23722.0,0.603997]
[1659261437188,0.40725733,23723.0,23722.0,0.603997]
[1659261437405,1.0455937,23725.0,23722.0,0.603997]
[1659261437623,1.0455937,23725.0,23723.0,0.3]
[1659261437852,1.04286939,23725.0,23723.0,0.3]
[1659261438781,1.04286939,23725.0,23722.0,0.351]
[1659261439250,1.04286939,23725.0,23722.0,0.4]
[1659261439487,1.04286939,23725.0,23722.0,0.3]
[1659261439701,1.04542641,23725.0,23723.0,0.303997]
[1659261439955,1.04542641,23725.0,23724.0,0.3]
[1659261440639,1.04542641,23725.0,23722.0,0.042]
[1659261440918,1.04542641,23725.0,23723.0,0.303997]
[1659261441152,1.04542641,23725.0,23724.0,0.303997]
[1659261441394,1.04542641,23725.0,23724.0,0.35134572]
[1659261441626,1.04542641,23725.0,23724.0,0.04734872]
[1659261441856,1.04542641,23725.0,23724.0,0.35134572]
[1659261442067,0.63816908,23725.0,23724.0,0.39234872]
[1659261442287,0.63816908,23725.0,23724.0,0.69634572]
[1659261443261,0.63816908,23725.0,23724.0,0.65134572]
[1659261444025,0.63816908,23725.0,23724.0,0.69634572]
[1659261445242,0.63816908,23725.0,23724.0,0.65134572]
[1659261445913,0.63816908,23725.0,23724.0,0.69634572]
[1659261446415,0.63816908,23725.0,23724.0,0.70904422]
[1659261447301,0.63816908,23725.0,23724.0,0.66404422]
[1659261447977,0.63816908,23725.0,23724.0,0.74404422]
[1659261448437,0.63816908,23725.0,23724.0,0.383997]
[1659261448699,0.63816908,23725.0,23724.0,0.08]
[1659261449165,1.04542641,23725.0,23722.0,0.210654]
[1659261449389,1.04542641,23725.0,23723.0,0.01265445]
[1659261449621,1.04542641,23725.0,23722.0,0.210654]
[1659261449867,1.04542641,23725.0,23723.0,0.303997]
[1659261450089,1.04542641,23725.0,23724.0,0.303997]
[1659261450570,1.04542641,23725.0,23723.0,0.34049101]
[1659261450804,1.04542641,23725.0,23724.0,0.603997]
[1659261451038,1.04542641,23725.0,23724.0,0.34734872]
[1659261451319,1.04542641,23725.0,23724.0,0.603997]
[1659261451551,1.04542641,23725.0,23724.0,0.3]
[1659261451778,1.04542641,23725.0,23724.0,0.303997]
[1659261452014,0.63816908,23725.0,23724.0,0.339997]
[1659261452234,0.63816908,23725.0,23724.0,0.639997]
[1659261452473,0.63816908,23725.0,23724.0,0.336]
[1659261452696,0.63816908,23725.0,23724.0,0.639997]
[1659261453165,0.63816908,23725.0,23724.0,0.336]
[1659261453383,0.63816908,23725.0,23724.0,0.3]
[1659261453825,0.63816908,23725.0,23724.0,0.603997]
[1659261454039,0.63816908,23725.0,23724.0,0.639997]
[1659261455412,0.63816908,23725.0,23724.0,0.603997]
[1659261456077,0.63816908,23725.0,23724.0,0.648997]
[1659261456311,0.63816908,23725.0,23724.0,0.345]
[1659261456565,0.63816908,23725.0,23724.0,0.045]
[1659261457018,1.04542641,23725.0,23724.0,0.045]
[1659261457248,1.04542641,23725.0,23718.0,0.52164903]
[1659261457249,1.34942341,23725.0,23718.0,0.52164903]
[1659261457473,0.50990861,23724.0,23718.0,0.52164903]
[1659261458053,0.50990861,23724.0,23718.0,0.53864903]
[1659261458759,0.40725733,23723.0,23718.0,0.53864903]
[1659261459205,0.40725733,23723.0,23718.0,0.52164903]
[1659261459859,0.40725733,23723.0,23718.0,0.55964903]
[1659261460344,0.40725733,23723.0,23719.0,0.3]
[1659261460583,0.40725733,23723.0,23719.0,0.35]
[1659261460781,0.40725733,23723.0,23720.0,0.00175484]
[1659261460891,0.44884393,23723.0,23720.0,0.00175484]
[1659261461123,0.44884393,23723.0,23719.0,0.3]
[1659261461363,0.40725733,23723.0,23720.0,0.00175484]
[1659261461566,0.40725733,23723.0,23719.0,0.3]
[1659261461796,0.40725733,23723.0,23719.0,0.338]
[1659261462265,0.407138,23723.0,23719.0,0.338]
[1659261462488,0.407138,23723.0,23720.0,0.00175484]
[1659261462711,0.407138,23723.0,23721.0,0.303997]
[1659261462923,0.407138,23723.0,23721.0,0.01264348]
[1659261463151,0.05,23722.0,23721.0,0.01264348]
[1659261463370,0.407138,23723.0,23721.0,0.31664048]
[1659261463594,0.407138,23723.0,23722.0,0.3]
[1659261463819,0.407138,23723.0,23721.0,0.042]
[1659261464261,0.407138,23723.0,23721.0,0.345997]
[1659261464491,0.407138,23723.0,23721.0,0.042]
[1659261465164,0.40978928,23723.0,23721.0,0.042]